Cogmind - Beta 15 @@@ ROGUE MODE // 2025.07.11 @ 15:41:11 Player: Shartlight Result: Smashed by cave-in Performance ------------- Evolutions (0) 0 Regions Visited (1) 200 Robots Destroyed (7) 35 Value Destroyed (96) 96 Prototype IDs (0) 0 Alien Tech Used (0) 0 Bonus (0) 0 TOTAL SCORE: 331 Bonus ------- None Cogmind --------- Core Integrity 0/250 Matter 278/300 Energy 26/100 System Corruption 19% Temperature Cool (0) Movement Walking (120) Location -10/Materials Parts ------- > --- POWER (1) -------- (None) > --- PROPULSION (2) --- Aluminum Leg > --- UTILITY (2) ------ Small Storage Unit > --- WEAPON (2) ------- Small Laser > --- INVENTORY (8) ---- (None) Peak State ------------ > --- POWER ------------ Light Ion Engine > --- PROPULSION ------- Wheel Compact Wheel > --- UTILITY ---------- Small Storage Unit Improved Terrain Scanner > --- WEAPON ----------- Mining Laser Mining Laser > --- INVENTORY -------- Aluminum Leg Aluminum Leg Small Laser [Rating: 9] Favorites ----------- Power Light Ion Engine Engine Light Ion Engine Propulsion Compact Wheel Leg Aluminum Leg Wheel Compact Wheel Utility Small Storage Unit Device Improved Terrain Scanner Storage Small Storage Unit Weapon Mining Laser Energy Gun Small Laser Special Weapon Mining Laser Build | -11 -10 ------- Run | Yrd Mat Slots Evolved . | . . Power . | . . Propulsion . | . . Utility . | . . Weapon . | . . Parts Attached 11 | 9 2 Power 1 | 1 . Engine 1 | 1 . Core . | . . Reactor . | . . Propulsion 4 | 2 2 Treads . | . . Leg 2 | . 2 Wheel 2 | 2 . Hover . | . . Flight . | . . Utility 2 | 2 . Device 1 | 1 . Storage 1 | 1 . Processor . | . . Hackware . | . . Protection . | . . Artifact . | . . Weapon 4 | 4 . Energy Gun 2 | 2 . Energy Cannon . | . . Ballistic Gun . | . . Ballistic Cannon . | . . Launcher . | . . Special Weapon 2 | 2 . Impact Weapon . | . . Slashing Weapon . | . . Piercing Weapon . | . . Special Melee Weapon . | . . Unidentified Prototypes . | . . Parts Lost 7 | . 7 Power 1 | . 1 Propulsion 3 | . 3 Utility 1 | . 1 Weapon 2 | . 2 Highest Loss Streak 4 | . 4 To Critical Strikes . | . . Average Backups 2 | 2 2 Power . | . . Propulsion 1 | 1 1 Utility . | . . Weapon . | . 1 Tool/Special . | . . Unused Backups . | . . Power . | . . Propulsion . | . . Utility . | . . Weapon . | . . Tool/Special . | . . Average Slot Usage (%) 82 | . 82 Engine 8 | . 8 Leg 5 | . 5 Wheel 17 | . 17 Device 8 | . 8 Storage 14 | . 14 Special Weapon 27 | . 27 Peak Build Rating 9 | 9 9 Average Rating 6 | 5 6 On Entrance 4 | . 9 Naked Turns . | . . Heaviest Build 11 | 11 11 Greatest Support 26 | 26 26 Greatest Overweight (x) 1 | 1 . Average Overweight (x) . | . . Largest Inventory Capacity 8 | 8 8 Average Capacity 7 | 7 8 Most Carried 4 | 4 3 Average Carried 2 | 2 2 Final Capacity 8 | 8 8 Final Carried 3 | 3 . Class Distribution -------------------- 76% | Scavenger-Mutant 23% | Mutant Dominant Class ---------------- Scavenger-Mutant | -10/Materials Resources | -11 -10 ----------- Run | Yrd Mat Matter Collected 290 | 280 10 Remotely . | . . Salvage Created 186 | 144 42 Parts 13 | 10 3 Haulers Intercepted . | . . Recyclers Shooed . | . . Parts Field Recycled . | . . Retrieved Matter . | . . Parts Self-Destructed . | . . Prevented . | . . Kills | -11 -10 ------- Run | Yrd Mat Combat Hostiles Destroyed 2 | . 2 Cannons 2 | . 2 Classes Destroyed 4 | 3 1 Worker 1 | 1 . Tunneler 3 | 3 . Recycler 1 | 1 . Grunt 2 | . 2 Best Kill Streak 1 | 1 1 Combat Bots Only 1 | . 1 Max Kills in Single Turn 1 | 1 1 Gunslinging . | . . Exploded . | . . Melee . | . . Uniques/NPCs Destroyed . | . . Combat | -11 -10 -------- Run | Yrd Mat Hostile Shots Fired 17 | . 17 Missed 2 | . 2 Hits 15 | . 15 Projectile 15 | . 15 Damage Taken 743 | . 743 Core 268 | . 268 Absorbed by Shields . | . . Core Remaining (%) 100 | 100 . Volleys Fired 28 | 18 10 Largest 2 | 2 2 Hottest 200 | 140 200 Shots Fired 46 | 32 14 Gun 28 | 28 . Cannon . | . . Launcher . | . . Special 18 | 4 14 Kinetic . | . . Thermal 46 | 32 14 Explosive . | . . Electromagnetic . | . . Robot Hit Streak 5 | 5 1 Robot Miss Streak 6 | 6 3 Penetration Max . | . . Secondary Targets . | . . Shots Hit Robots 18 | 15 3 Core Hits 8 | 6 2 Critical Kills . | . . Critical Parts Destroyed . | . . Critical Strikes . | . . Melee Attacks . | . . Impact . | . . Slashing . | . . Piercing . | . . Sneak Attacks . | . . Combat Hostiles . | . . Follow-up Attacks . | . . Damage Inflicted 257 | 185 72 Guns 161 | 161 . Cannons . | . . Explosions . | . . Melee . | . . Ramming . | . . Kinetic . | . . Thermal 257 | 185 72 Explosive . | . . Electromagnetic . | . . Impact . | . . Slashing . | . . Piercing . | . . Highest Corruption 14 | . 14 Average Corruption 9 | . 9 Corruption Purged . | . . Corruption Blocked . | . . Effects 4 | . 4 Matter Fused 2 | . 2 Heat Flow Errors 1 | . 1 Energy Discharges 1 | . 1 Overload Shots . | . . Overflow Damage . | . . Projectiles . | . . Explosions . | . . Melee . | . . Knockbacks . | . . Impact . | . . Kinetic . | . . Secondary . | . . Self-Inflicted Damage . | . . Shots . | . . Rammed . | . . Targets Rammed . | . . Kicked . | . . Crushed . | . . Highest Temperature 194 | 126 194 Average Temperature 67 | 53 83 Received Heat Transfer 18 | . 18 Siege Activations . | . . Martial Activations . | . . Shielding Activations . | . . Robots Disrupted . | . . Combat Hostiles . | . . Robots Corrupted . | . . Combat Hostiles . | . . Parts Fried . | . . Impact Corruptions . | . . Robots Melted . | . . Combat Hostiles . | . . Parts Melted 1 | 1 . Heat Transferred 550 | 400 150 Parts Sabotaged . | . . Parts Stolen . | . . Parts Stripped . | . . Power Chain Reactions . | . . Alert | -11 -10 ------- Run | Yrd Mat Maximum Alert Level . | . . Low Security (%) 100 | 100 100 Level 1 . | . . Level 2 . | . . Level 3 . | . . Level 4 . | . . Level 5 . | . . High Security . | . . Max Security . | . . Peak Influence 43 | 5 43 Initial . | . . Average 4 | 1 6 Influence Increases 122 | 25 97 Destroy 0b10 Robot/C 40 | . 40 Destroy 0b10 Robot/NC 25 | 25 . Destroy Leader 20 | . 20 Destroy Structure 7 | . 7 Partial Spotted 15 | . 15 Lose Combat Pursuer 15 | . 15 Influence Decreases 122 | 25 97 Time Decay 75 | 25 50 Lost Part 47 | . 47 Squads Dispatched 2 | . 2 Investigation . | . . Extermination . | . . Reinforcement 2 | . 2 Assault . | . . Garrison . | . . Intercept . | . . Searches Triggered . | . . Construction Impeded . | . . Haulers Reinforced . | . . Active Scanning Responses . | . . Cargo Convoy Interrupts . | . . Stealth | -11 -10 --------- Run | Yrd Mat Distress Signals . | . . Communications Jammed . | . . Distress Signals . | . . Times Spotted 8 | . 8 Peak Tracking Total 3 | . 3 Tactical Retreats 1 | . 1 Traps | -11 -10 ------- Run | Yrd Mat Traps Triggered . | . . Indirectly . | . . Trap Hack Attempts . | . . Triggered . | . . Disarmed . | . . Reprogrammed . | . . Reused . | . . Traps Extracted . | . . Installed . | . . Triggered . | . . Machines | -11 -10 ---------- Run | Yrd Mat Machines Disabled . | . . Max in Single Turn . | . . Machines Repaired . | . . Machines Dismantled . | . . Machines Sabotaged . | . . Overloaded Fab Kills . | . . Hacking | -11 -10 --------- Run | Yrd Mat Machines Accessed . | . . Terminals . | . . Fabricators . | . . Repair Stations . | . . Recycling Units . | . . Scanalyzers . | . . Garrison Access . | . . Total Hacks . | . . Successful . | . . Failed . | . . Catastrophic . | . . Database Lockouts . | . . Manual . | . . Terminals . | . . Fabricators . | . . Repair Stations . | . . Recycling Units . | . . Scanalyzers . | . . Garrison Access . | . . Terminal Hacks . | . . Fabricator Hacks . | . . Repair Station Hacks . | . . Recycling Unit Hacks . | . . Scanalyzer . | . . Garrison Access Hacks . | . . Unauthorized Hacks . | . . Terminals . | . . Fabricators . | . . Repair Stations . | . . Recycling Units . | . . Scanalyzers . | . . Garrison Access . | . . Data Cores Recovered . | . . Used . | . . Hacking Detections . | . . Full Trace Events . | . . Feedback Events . | . . Feedback Blocked . | . . Robot Schematics Acquired . | . . Robots Built . | . . Authchips . | . . Time . | . . Total Robot Build Rating . | . . Part Schematics Acquired . | . . Parts Built . | . . Authchips . | . . Time . | . . Total Part Build Rating . | . . Parts Repaired . | . . Time . | . . Parts Recycled . | . . Recycled Matter . | . . Retrieved Matter . | . . Retrieved Components . | . . Parts Scanalyzed . | . . Part Schematics Acquired . | . . Parts Damaged . | . . Bothacking | -11 -10 ------------ Run | Yrd Mat Used RIF Installer . | . . Robots Hacked . | . . Non-combat . | . . Combat . | . . Robot Hacks Applied . | . . Relay Couplers Released . | . . Fabnet Peak Effective % . | . . Robots Rewired . | . . Allies Hacked . | . . Hacks Repelled . | . . Allies | -11 -10 -------- Run | Yrd Mat Total Allies . | . . Largest Group . | . . Highest-Rated Group . | . . Highest-Rated Ally . | . . Total Orders . | . . Ally Attacks . | . . Total Damage . | . . Kills . | . . Allies Corrupted . | . . Allies Melted . | . . Intel | -11 -10 ------- Run | Yrd Mat Active Infowar (turns) 138 | 7 131 Terrain 138 | 7 131 Robot Analysis Total . | . . Derelict Logs Recovered . | . . Drone Launches . | . . Drone Recoveries . | . . Exploration | -11 -10 ------------- Run | Yrd Mat Turns Passed 422 | 190 232 Spaces Moved 174 | 100 74 Core 22 | 22 . Treads . | . . Legs 1 | . 1 Wheels 151 | 78 73 Hover . | . . Flight . | . . Fastest Speed 50 | 50 90 Average Speed 88 | 87 90 Slowest Speed 120 | 100 120 Overloaded Moves . | . . Propulsion Burnouts . | . . Robots Hopped . | . . Potential Cave-ins . | . . Cave-ins Triggered 4 | . 4 Exploration Rate (%) 13 | 6 21 Regions Visited 1 Branch Regions . Pre-discovered Areas . | . . Known Exits Taken . | . . Unknown Exits Taken 1 | 1 . Scrap Searched . | . . Spaces Dug 4 | . 4 Terrain Destroyed 12 | 1 11 Melee . | . . Projectile 12 | 1 11 AOE . | . . Terrain Rammed . | . . Walls Destroyed . | . . Machines Disabled . | . . Actions | -11 -10 --------- Run | Yrd Mat Total 362 | 164 198 Wait 135 | 24 111 Move 173 | 99 74 Hop . | . . Pick Up 11 | 11 . Fast Attach . | . . Attach 12 | 9 3 Detach 2 | 2 . Swap . | . . Drop 1 | 1 . Fire 28 | 18 10 Melee . | . . Ram . | . . Kick . | . . Crush . | . . Escape Stasis . | . . Rewire . | . . Trap . | . . Miscellaneous . | . . Route ------- -11/Scrapyard -10/Materials History --------- Turn | Location | Event 9 | -11/Scrapyard | Discovered new exit (range 15) 191 | -11/Scrapyard | Entered Materials 300 | -10/Materials | Build established: Scavenger-Mutant 322 | -10/Materials | Crushed by falling debris 347 | -10/Materials | Crushed by falling debris 378 | -10/Materials | Lost 4 parts (1p2n1u) 413 | -10/Materials | Crushed by falling debris 413 | -10/Materials | Core integrity fell below 50% 413 | -10/Materials | Core integrity fell below 20% 413 | -10/Materials | System corruption reached 10% 424 | -10/Materials | Crushed by falling debris 424 | -10/Materials | Smashed by cave-in Last Messages --------------- 00323_ System corrupted: Matter fused (-6). 00344_ System corrupted: Energy discharge (-30). 00347_ The unstable cave ceiling collapses. 00347_ Crushed by falling debris. 00347_ Com. Wheel destroyed. 00347_ System corrupted by crushing effect (+2). 00386_ System corrupted: Heat flow error (+194). 00390_ U-05 Engineer builds a Wall. 00396_ K-01 Serf collects debris. 00401_ System corrupted: Matter fused (-6). 00411_ Mining Laser destroyed. 00413_ The unstable cave ceiling collapses. 00413_ Crushed by falling debris. 00413_ Aluminum Leg destroyed. 00413_ System corrupted by crushing effect (+5). 00420_ System corrupted: FCS attempts to trigger Sml. Laser. 00424_ The unstable cave ceiling collapses. 00424_ Crushed by falling debris. 00424_ Mining Laser destroyed. 00424_ System corrupted by crushing effect (+5). Map ----- +----------------------------------------------------+ | ??????????????????????????????????????????????? | | ??????????????????????????????????????????????? | | ??????????????????????????????????????????????? | | ??????????????????????????????????????????????? | | ??????????????????????????????????????????????? | | ??????????????????????????????????????????????? | | ??????????????????????????????????????????????? | | ??????????????????????????????????????????????? | | ???????????????????????? ?????????????????????? | | ????????????????? ?? ? ???????????????????????? | | ??????????????????# ?????????????????????????? | | ?????????????##???# ?????????????????????????? | | ??????????????# ??# ??????????????##?????????? | | ???????????#### ### "????? ?????? ?????????? | | ??????????? ?????? ?????? ?????????? | | ?????????? ^ ??"?????????? #??????"?? | | ????????? ??? ? ??????? #????????? | | ??????????!! ???????????? #????????? | | ?????????#!! ???##?????#??# #??####### | | ?????????# ##?########### #### | | ???????? #??# # #??# """ | | ???????? #### # #??# """ | | ???????? %= %/! # #### """ | | ???????????????############ [[ # + | | ?????????????????????#s ### [[ + ## """ | | ???????????????????#?#@##?# [[ # ## """ | | ?????????????????????####?# # ## """ | | ??????????????????????????# # ## | | ??????????????????????#???# # ## | | ??????????????????????????########## ## | | ??????????????? ???????????????#### ###+### | | ?????????????????????????????? " | | ??????????? ???????????????? "T | | ?????????????????????? ???? | | ?????????????"?????????????????#### ##"+### | | ?????????????????????#????????????####### # | | ?????????????? ??????#?#????????????????# "" # | | ?????????????????????????????????????#??# "" # | | ??????????????????????????#???#?????????# "T !# | | ????????????????????????????????????????# "" # | | ?????????????????????????????#??????????# "" # | | ????????????????????????????????????????# # | | ???????????????????????????????#????????#! = !# | | ????????????????????????????????????????####### | | | | | | | | | | | | | +----------------------------------------------------+ Best States ------------- Heat Dissipation 25 Energy Generation 10 Energy Capacity 125 Matter Stores 300 Matter Capacity 300 Sight Range 16 Terrain Scan Range 16 Terrain Scan Density 10 Evasion (%) 50 Item Schematics ----------------- None Robot Schematics ------------------ None Fabricated ------------ Nothing Repaired ---------- Nothing Alien Tech Used ----------------- None Achievements -------------- None Challenges ------------ None Game ------ Seed GlidesysJammingUnit Manual? 0 Play Time 00:11:27 Cumulative 4.3 hours Start 2025.07.11 @ 15:31:04 End 2025.07.11 @ 15:41:11 Sessions 1 Manual Loads 0 Difficulty Rogue Special Mode None Game No. 7 Rogue 7 Adventurer 0 Explorer 0 Win Type - Total 0 Types 0/0/0/0/0/0/0/0/0/0 Lore% 5 Gallery% 10 Achievement% 15 Wizard Run 0 Options --------- Layout 1 ASCII 0 Keyboard 0 Movement Mouse Keybinds 0 Fullscreen 1 Font 32/TamsynBold Map View 38x17 Zoom Use 87% Tactical HUD 1 Map Filters NONE Filters NONE Steam 1 RUN: ff798316-d46c-4eb9-9cbb-1f420260202b